Cogmind - Beta 15 @@@ ROGUE MODE // 2025.07.17 @ 19:16:24 Player: VVRLD_D35TR0YER Result: Destroyed by J5-Z7C(R) with Subdweller Beam Cannon Performance ------------- Evolutions (0) 0 Regions Visited (2) 400 Robots Destroyed (21) 105 Value Destroyed (453) 453 Prototype IDs (1) 20 Alien Tech Used (0) 0 Bonus (0) 0 TOTAL SCORE: 978 Bonus ------- None Cogmind --------- Core Integrity 0/250 Matter 265/300 Energy 100/100 System Corruption 12% Temperature Cool (9) Movement Flying (37) Location -10/Subcaves Parts ------- > --- POWER (1) -------- (None) > --- PROPULSION (2) --- Improved Flight Unit Improved Flight Unit > --- UTILITY (2) ------ Visual Processing Unit Subdweller Optics > --- WEAPON (2) ------- Mini Grenade Launcher Maul > --- INVENTORY (5) ---- High-capacity Storage Unit Scrap Shield Subdweller Beam Cannon Mini Grenade Launcher Peak State ------------ > --- POWER ------------ Subdweller Power Source > --- PROPULSION ------- Improved Flight Unit Improved Flight Unit > --- UTILITY ---------- Weight Redist. System Visual Processing Unit > --- WEAPON ----------- Battle Cannon Maul > --- INVENTORY -------- Improved Flight Unit High-capacity Storage Unit Subdweller Optics Mini Grenade Launcher Mini Grenade Launcher [Rating: 17] Favorites ----------- Power Subdweller Power Source Engine Subdweller Power Source Propulsion Improved Flight Unit Treads Light Treads Flight Unit Improved Flight Unit Utility Visual Processing Unit Device Weight Redist. System Processor Visual Processing Unit Weapon Maul Energy Gun Small Laser Energy Cannon Subdweller Beam Cannon Ballistic Gun Assault Rifle Ballistic Cannon Battle Cannon Launcher Mini Grenade Launcher Impact Weapon Maul Build | -11 -10 -10 ------- Run | Yrd Mat Sub Slots Evolved . | . . . Power . | . . . Propulsion . | . . . Utility . | . . . Weapon . | . . . Parts Attached 23 | 4 11 8 Power 2 | . 1 1 Engine 2 | . 1 1 Core . | . . . Reactor . | . . . Propulsion 7 | 2 4 1 Treads 4 | 2 2 . Leg . | . . . Wheel . | . . . Hover . | . . . Flight 3 | . 2 1 Utility 4 | . 2 2 Device 3 | . 1 2 Storage . | . . . Processor 1 | . 1 . Hackware . | . . . Protection . | . . . Artifact . | . . . Weapon 10 | 2 4 4 Energy Gun 2 | 1 1 . Energy Cannon 1 | . . 1 Ballistic Gun 3 | 1 2 . Ballistic Cannon 1 | . . 1 Launcher 2 | . . 2 Special Weapon . | . . . Impact Weapon 1 | . 1 . Slashing Weapon . | . . . Piercing Weapon . | . . . Special Melee Weapon . | . . . Unidentified Prototypes 1 | . 1 . Corrupted Parts 1 | . . 1 System Corruption 12 | . . 12 Parts Lost 3 | . 1 2 Power 1 | . . 1 Propulsion 1 | . 1 . Utility 1 | . . 1 Weapon . | . . . Highest Loss Streak 1 | . 1 1 To Critical Strikes . | . . . Average Backups 4 | 1 4 4 Power . | . . . Propulsion . | . 1 . Utility 1 | . 1 1 Weapon 1 | . 1 2 Tool/Special . | . . . Unused Backups 9 | . 6 3 Power 1 | . 1 . Propulsion 1 | . 1 . Utility 5 | . 3 2 Weapon 2 | . 1 1 Tool/Special . | . . . Average Slot Usage (%) 87 | . 73 94 Engine 11 | . 6 14 Treads 7 | . 21 . Flight 20 | . 5 27 Device 10 | . 7 12 Processor 11 | . 6 14 Energy Gun 2 | . 8 . Ballistic Gun 4 | . 13 . Ballistic Cannon 3 | . . 4 Launcher 3 | . . 5 Impact Weapon 10 | . 2 13 Peak Build Rating 17 | 4 13 17 Average Rating 12 | 2 7 15 On Entrance 5 | . 4 13 Naked Turns . | . . . Heaviest Build 17 | 3 9 17 Greatest Support 46 | 20 46 16 Greatest Overweight (x) 2 | . . 2 Average Overweight (x) . | . . . Largest Inventory Capacity 5 | 5 5 5 Average Capacity 5 | 5 5 5 Most Carried 5 | 4 5 5 Average Carried 4 | 1 4 4 Final Capacity 5 | 5 5 5 Final Carried 5 | 4 4 5 Class Distribution -------------------- 91% | Mutant 8% | Scavenger-Mutant Dominant Class ---------------- Mutant | -10/Materials Mutant | -10/Subcaves Resources | -11 -10 -10 ----------- Run | Yrd Mat Sub Matter Collected 697 | 167 275 255 Remotely . | . . . Salvage Created 570 | . 283 287 Parts 32 | . 14 18 Haulers Intercepted 1 | . 1 . Recyclers Shooed . | . . . Parts Field Recycled . | . . . Retrieved Matter . | . . . Parts Self-Destructed 12 | . . 12 Prevented . | . . . Kills | -11 -10 -10 ------- Run | Yrd Mat Sub Combat Hostiles Destroyed 15 | . 4 11 Guns 4 | . 4 . Cannons 3 | . . 3 AOE 4 | . . 4 Classes Destroyed 8 | . 6 2 Builder 3 | . 3 . Hauler 1 | . 1 . Recycler 1 | . 1 . Watcher 1 | . 1 . Swarmer 6 | . 3 3 Grunt 1 | . 1 . Artisan 1 | . . 1 Subdweller 8 | . . 8 Best Kill Streak 6 | . 6 3 Combat Bots Only 4 | . 4 3 Max Kills in Single Turn 3 | . 2 3 Gunslinging . | . . . Exploded 3 | . . 3 Melee . | . . . Uniques/NPCs Destroyed . | . . . Combat | -11 -10 -10 -------- Run | Yrd Mat Sub Hostile Shots Fired 55 | . 17 38 Missed 18 | . 3 15 Hits 37 | . 14 23 Projectile 37 | . 14 23 Critical Strikes 1 | . 1 . Damage Taken 739 | . 133 606 Core 263 | . 8 255 Absorbed by Shields . | . . . Core Remaining (%) 100 | 100 . . Volleys Fired 30 | . 20 10 Largest 2 | . 2 1 Hottest 60 | . 60 33 Shots Fired 50 | . 40 10 Gun 40 | . 40 . Cannon 6 | . . 6 Launcher 4 | . . 4 Special . | . . . Kinetic 27 | . 21 6 Thermal 19 | . 19 . Explosive 4 | . . 4 Electromagnetic . | . . . Robot Hit Streak 13 | . 13 6 Robot Miss Streak 2 | . 2 2 Penetration Max . | . . . Secondary Targets 1 | . 1 . Max Gunslinging Chain 1 | . 1 . Shots Hit Robots 56 | . 30 26 Core Hits 21 | . 12 9 Critical Kills . | . . . Critical Parts Destroyed 3 | . . 3 Critical Strikes 8 | . . 8 Smash 8 | . . 8 Melee Attacks 50 | . 5 45 Impact 50 | . 5 45 Slashing . | . . . Piercing . | . . . Sneak Attacks 5 | . 3 2 Combat Hostiles 1 | . . 1 Follow-up Attacks . | . . . Damage Inflicted 1843 | . 545 1298 Guns 327 | . 327 . Cannons 127 | . . 127 Explosions 218 | . . 218 Melee 1171 | . 218 953 Ramming . | . . . Kinetic 302 | . 175 127 Thermal 152 | . 152 . Explosive 218 | . . 218 Electromagnetic . | . . . Impact 1171 | . 218 953 Slashing . | . . . Piercing . | . . . Highest Corruption 12 | . . 12 Average Corruption 12 | . . 12 Corruption Purged . | . . . Corruption Blocked . | . . . Effects 29 | . . 29 Message Errors 6 | . . 6 Matter Fused 7 | . . 7 Heat Flow Errors 7 | . . 7 Energy Discharges 2 | . . 2 Parts Rejected 1 | . . 1 Parts Fused 1 | . . 1 Data Loss (minor) 2 | . . 2 Alerts 1 | . . 1 Misdirections 2 | . . 2 Overload Shots . | . . . Overflow Damage 338 | . 143 195 Projectiles . | . . . Explosions . | . . . Melee 338 | . 143 195 Knockbacks 8 | . 2 6 Impact 7 | . 2 5 Kinetic 1 | . . 1 Secondary . | . . . Self-Inflicted Damage 15 | . . 15 Shots 1 | . . 1 Rammed . | . . . Targets Rammed . | . . . Kicked . | . . . Crushed . | . . . Highest Temperature 169 | . 15 169 Average Temperature 50 | . 6 77 Received Heat Transfer 66 | . 42 24 Siege Activations . | . . . Martial Activations . | . . . Shielding Activations . | . . . Robots Disrupted . | . . . Combat Hostiles . | . . . Robots Corrupted 6 | . 2 4 Combat Hostiles 4 | . . 4 Parts Fried 7 | . 1 6 Impact Corruptions 14 | . 6 8 Robots Melted . | . . . Combat Hostiles . | . . . Parts Melted . | . . . Heat Transferred 350 | . 350 . Parts Sabotaged . | . . . Parts Stolen . | . . . Parts Stripped . | . . . Power Chain Reactions . | . . . Alert | -11 -10 -10 ------- Run | Yrd Mat Sub Maximum Alert Level . | . . . Low Security (%) 100 | 100 100 . Level 1 . | . . . Level 2 . | . . . Level 3 . | . . . Level 4 . | . . . Level 5 . | . . . High Security . | . . . Max Security . | . . . Peak Influence 106 | . 106 . Initial . | . . . Average 43 | . 47 . Influence Increases 341 | . 271 70 Destroy 0b10 Robot/C 140 | . 80 60 Destroy 0b10 Robot/NC 30 | . 30 . Destroy Leader 34 | . 24 10 Successful Hack 16 | . 16 . Select Force Hacks 30 | . 30 . Destroy Structure 1 | . 1 . Partial Spotted 45 | . 45 . Lose Combat Pursuer 45 | . 45 . Influence Decreases 341 | . 199 142 Entered New Map 36 | . . 36 Time Decay 295 | . 189 106 Lost Part 10 | . 10 . Squads Dispatched 1 | . 1 . Investigation 1 | . 1 . Extermination . | . . . Reinforcement . | . . . Assault . | . . . Garrison . | . . . Intercept . | . . . Searches Triggered . | . . . Construction Impeded . | . . . Haulers Reinforced . | . . . Active Scanning Responses . | . . . Cargo Convoy Interrupts . | . . . Stealth | -11 -10 -10 --------- Run | Yrd Mat Sub Distress Signals . | . . . Communications Jammed . | . . . Distress Signals . | . . . Times Spotted 21 | . 9 12 Peak Tracking Total 3 | . 3 3 Tactical Retreats 3 | . 2 1 Traps | -11 -10 -10 ------- Run | Yrd Mat Sub Traps Triggered 2 | . . 2 Indirectly . | . . . Trap Hack Attempts . | . . . Triggered . | . . . Disarmed . | . . . Reprogrammed . | . . . Reused . | . . . Traps Extracted . | . . . Installed . | . . . Triggered . | . . . Machines | -11 -10 -10 ---------- Run | Yrd Mat Sub Machines Disabled . | . . . Max in Single Turn . | . . . Machines Repaired . | . . . Machines Dismantled . | . . . Machines Sabotaged . | . . . Overloaded Fab Kills . | . . . Hacking | -11 -10 -10 --------- Run | Yrd Mat Sub Machines Accessed 4 | . 4 . Terminals 3 | . 3 . Fabricators . | . . . Repair Stations . | . . . Recycling Units 1 | . 1 . Scanalyzers . | . . . Garrison Access . | . . . Total Hacks 11 | . 11 . Successful 4 | . 4 . Failed 7 | . 7 . Catastrophic . | . . . Database Lockouts . | . . . Manual 8 | . 8 . Terminals 8 | . 8 . Fabricators . | . . . Repair Stations . | . . . Recycling Units 3 | . 3 . Scanalyzers . | . . . Garrison Access . | . . . Terminal Hacks 1 | . 1 . Robot Analysis 1 | . 1 . Fabricator Hacks . | . . . Repair Station Hacks . | . . . Recycling Unit Hacks . | . . . Scanalyzer . | . . . Garrison Access Hacks . | . . . Unauthorized Hacks 3 | . 3 . Terminals 2 | . 2 . Botnet 1 | . 1 . Operators 1 | . 1 . Fabricators . | . . . Repair Stations . | . . . Recycling Units 1 | . 1 . Tunnel 1 | . 1 . Scanalyzers . | . . . Garrison Access . | . . . Data Cores Recovered . | . . . Used . | . . . Hacking Detections 4 | . 4 . Full Trace Events . | . . . Feedback Events . | . . . Feedback Blocked . | . . . Robot Schematics Acquired . | . . . Robots Built . | . . . Authchips . | . . . Time . | . . . Total Robot Build Rating . | . . . Part Schematics Acquired . | . . . Parts Built . | . . . Authchips . | . . . Time . | . . . Total Part Build Rating . | . . . Parts Repaired . | . . . Time . | . . . Parts Recycled . | . . . Recycled Matter . | . . . Retrieved Matter . | . . . Retrieved Components . | . . . Parts Scanalyzed . | . . . Part Schematics Acquired . | . . . Parts Damaged . | . . . Bothacking | -11 -10 -10 ------------ Run | Yrd Mat Sub Used RIF Installer . | . . . Robots Hacked . | . . . Non-combat . | . . . Combat . | . . . Robot Hacks Applied . | . . . Relay Couplers Released . | . . . Fabnet Peak Effective % . | . . . Robots Rewired . | . . . Allies Hacked . | . . . Hacks Repelled . | . . . Allies | -11 -10 -10 -------- Run | Yrd Mat Sub Total Allies . | . . . Largest Group . | . . . Highest-Rated Group . | . . . Highest-Rated Ally . | . . . Total Orders . | . . . Ally Attacks . | . . . Total Damage . | . . . Kills . | . . . Allies Corrupted . | . . . Allies Melted . | . . . Intel | -11 -10 -10 ------- Run | Yrd Mat Sub Active Infowar (turns) 1031 | . 185 846 Optics 1031 | . 185 846 Robot Analysis Total 1 | . 1 . Derelict Logs Recovered 1 | . . 1 Drone Launches . | . . . Drone Recoveries . | . . . Exploration | -11 -10 -10 ------------- Run | Yrd Mat Sub Turns Passed 1306 | 46 414 846 Spaces Moved 1404 | 69 473 862 Core 353 | 68 281 4 Treads 9 | 1 8 . Legs . | . . . Wheels . | . . . Hover . | . . . Flight 1042 | . 184 858 Fastest Speed 37 | 50 37 37 Average Speed 62 | 51 46 71 Slowest Speed 160 | 160 160 150 Overloaded Moves . | . . . Propulsion Burnouts . | . . . Robots Hopped . | . . . Potential Cave-ins . | . . . Cave-ins Triggered . | . . . Exploration Rate (%) 39 | 3 71 45 Regions Visited 2 Branch Regions 1 Pre-discovered Areas 1 | . 1 . Known Exits Taken . | . . . Unknown Exits Taken 2 | 1 1 . Scrap Searched 4 | . . 4 Spaces Dug 8 | . . 8 Terrain Destroyed 33 | . . 33 Melee 8 | . . 8 Projectile . | . . . AOE 25 | . . 25 Terrain Rammed . | . . . Walls Destroyed . | . . . Machines Disabled . | . . . Actions | -11 -10 -10 --------- Run | Yrd Mat Sub Total 1682 | 76 619 987 Wait 124 | . 80 44 Move 1402 | 68 472 862 Hop . | . . . Pick Up 18 | 4 11 3 Fast Attach 17 | 4 5 8 Attach 7 | . 4 3 Detach 5 | . 2 3 Swap 6 | . 5 1 Drop 22 | . 15 7 Fire 30 | . 20 10 Melee 50 | . 5 45 Ram . | . . . Kick . | . . . Crush . | . . . Escape Stasis . | . . . Rewire . | . . . Trap 1 | . . 1 Miscellaneous . | . . . Route ------- -11/Scrapyard -10/Materials (discovered 4 exits: [*Mat x2] / [*Min] / [*Sub]) -10/Subcaves (discovered 1 exit: Mat) History --------- Turn | Location | Event 18 | -11/Scrapyard | Discovered new exit (range 15) 47 | -11/Scrapyard | Entered Materials 214 | -10/Materials | Discovered new exit (range 12) 270 | -10/Materials | Discovered new exit (range 15) 394 | -10/Materials | Discovered new exit (range 8) 458 | -10/Materials | Discovered new exit (range 9) 461 | -10/Materials | Entered Subcaves 468 | -10/Subcaves | Ambushed by Subdwellers from Twisted Machinery 480 | -10/Subcaves | A swath of the cavern ceiling suddenly collapsed 481 | -10/Subcaves | Shifting Twisted Machinery released Sub. Optics 517 | -10/Subcaves | System corruption reached 10% 521 | -10/Subcaves | Shifting Twisted Machinery released Battle Cannon 579 | -10/Subcaves | Ambushed by Subdwellers from Twisted Machinery 665 | -10/Subcaves | Build established: Mutant 829 | -10/Subcaves | Identified exit to Materials 906 | -10/Subcaves | Core integrity fell below 50% 1161 | -10/Subcaves | Core integrity fell below 20% 1307 | -10/Subcaves | Destroyed by J5-Z7C(R) with Subdweller Beam Cannon Last Messages --------------- 01160_ Spikes shoot up from the floor. 01160_ Critical hit (Impale). 01162_ System corrupted: Energy discharge (-33). 01181_ Sneak attack on MS-GG4(u). 01181_ MS-GG4(u) suffers critical hit (Smash). 01181_ Destroyed Wheel. 01181_ MS-GG4(u) system corrupted by crushing effect. 01181_ Wheel fried. 01181_ MS-GG4(u) cries out in pain. 01181_ MS-GG4(u) destroyed. 01184_ Acquired 26 matter. 01194_ Q7-VS2(R): "OHNO!" 01204_ System corrupted: Matter fused (-7). 01233_ Z|AC0MBKFAY%HUPV/00##X% 01252_ System corrupted: Matter fused (-9). 01267_ System corrupted: Component data lost. 01286_ System corrupted: Heat flow error (+123). 01304_ Z5-3YV(R) destroyed. 01307_ Broken Sub. Power Source destroyed. Map ----- +----------------------------------------------------+ | ?????????????????????????????????????????????????? | | ?????????????????????????????????????????????????# | | ???????????????????????????????????????????????### | | ??????????????????????????????????????????????## | | ??????????????????????????????????????????????# | | ??????????????????????????????????????????????## | | ????????????????????????????????????????????????# | | ????????????????????????????????????????????????# | | ????????????????????????????????????????????????# | | ????????????????????????????????????????????????## | | ????????????????????????????#????????????????????? | | ??????????????????????????? #????????????????????? | | ??????????????????????????? ????????????????????? | | ??????????????????????????? ????????????????????? | | ?????????????????????###??? ????????????????????? | | ????????????????????? ### ##???????????????????? | | ???????????????????### #???????????????????? | | ???????????????????? # #???????????????????? | | ????????????????????? ????????????????????? | | ????????????????????? R ???????????????????## | | ?????????????????????? ! * ##?????????????????## | | ??????????????????????# ! ????????????????### | | ?????????????????###### ##?????????####### | | ?????????????????# ####??????# | | ??????????????????# ##?###### | | ?????????????? % ?## @ ### # # # | | ????????????# ??## ###### | | ??????????### ???# ####?? | | ?????????# % ??# ### ## ##? | | ?????????? ??# ??# ##### #? | | ??????????? #?# ???# ####???## #### ## | | ????#??????? %### ???## #???#######??## ## | | ????? ###???# ###?????###?### ## ##### ## | | ?????? #### ?????????### ## | | #?????? ### ???????### | | ??????# #?# #?????### | | ????## #?# #????## | | ???# #### ##???# ## | | ??# ### #???## ## ## ## | | ## # ###### ## #### ## #### | | # #??######??#### | | ???# #?????????????# | | ???# #????????????? | | ???# ##### # # ## #???????????? | | ???#####?# # ########## #??????????? | | ???# ### ####???????? ####??????????? | | ???# ## ##??????????# ###?????????????? | | ????# ####???????????# ##???????????????? | | ????## ####?????????????# ##????????????????? | | ??#### ##?# ##??????? ???##??????????????????? | +----------------------------------------------------+ Best States ------------- Heat Dissipation 25 Energy Generation 15 Energy Capacity 250 Matter Stores 300 Matter Capacity 300 Sight Range 18 Terrain Scan Density 10 Additional Mass Support 6 Evasion (%) 62 Recoil Reduction 1 Item Schematics ----------------- None Robot Schematics ------------------ None Fabricated ------------ Nothing Repaired ---------- Nothing Alien Tech Used ----------------- None Achievements -------------- None Challenges ------------ None Game ------ Seed AssembledPointyDerivative Manual? 0 Play Time 00:21:57 Cumulative 208.9 hours Start 2025.07.15 @ 01:37:26 End 2025.07.17 @ 19:16:24 Sessions 2 Manual Loads 0 Difficulty Rogue Special Mode None Game No. 216 Rogue 216 Adventurer 0 Explorer 0 Win Type - Total 3 Types 3/0/0/0/0/0/0/0/0/0 Lore% 72 Gallery% 69 Achievement% 66 Wizard Run 0 Options --------- Layout 1 ASCII 0 Keyboard 1 Movement Vi Keybinds 0 Fullscreen 1 Font 24/Smallcaps Map View 50x35 Zoom Use 1% Tactical HUD 1 Map Filters NONE Filters NONE Steam 1 RUN: b339acc6-9f9b-4f72-8484-1c415d116dff